[Event "FIDE Chesscom Online Nations Cup"]
[White "Nepomniachtchi, Ian"]
[Black "Nakamura, Hikaru"]
[Site "Online"]
[Round "2"]
[Annotator "RC"]
[Result "0-1"]
[Date "2020.05.05"]
[WhiteElo "2778"]
[BlackElo "2829"]
[PlyCount "276"]
[TimeControl "1500+10"]

1. d4 {[%emt 0:0:13]} Nf6 {[%emt 0:0:3]} 2. c4 {[%emt 0:0:2]} e6 {[%emt 0:0:0]} 3. Nf3 {[%emt 0:0:2]} d5 {[%emt 0:0:1]} 4. Nc3 {[%emt 0:0:2]} Be7 {[%emt 0:0:1]} 5. Bf4 {[%emt 0:0:1]} 0-0 {[%emt 0:0:1]} 6. e3 {[%emt 0:0:0]} Nbd7 {[%emt 0:0:1]} 7. c5 {[%emt 0:0:12]} c6 {[%emt 0:0:3]} 8. h3 {[%emt 0:0:11]} b6 {[%emt 0:0:2]} 9. b4 {[%emt 0:0:3]} a5 {[%emt 0:0:0]} 10. a3 {[%emt 0:0:2]} h6 {[%emt 0:0:1]} 11. Qc1 {[%emt 0:0:3]} Bb7 {[%emt 0:0:2]
} 12. Bd3 {[%emt 0:0:4]} Qc8 {[%emt 0:0:1]} 13. 0-0 {[%emt 0:0:0]} Ba6 {[%emt 0:0:1]} 14. Bxa6 {[%emt 0:0:2]} Rxa6 {[%emt 0:0:28]} 15. Qb2 {[%emt 0:0:2]} Qb7 {[%emt 0:0:43]} 16. Rfb1 {[%emt 0:0:3]} axb4 {[%emt 0:0:17]
} 17. axb4 {[%emt 0:0:3]} Rxa1 {[%emt 0:0:4]} 18. Qxa1 {[%emt 0:0:4]
} Ra8 {[%emt 0:0:2]} 19. Qb2 {[%emt 0:0:5]} Nh5 {[%emt 0:0:0]} 20. Bh2 {[%emt 0:2:52]} Bd8 {[%emt 0:0:15]} 21. Ra1 {[%emt 0:0:41]} Nhf6 {[%emt 0:0:20]} 22. g4 {[%emt 0:0:58]} Ne8 {[%emt 0:0:37]} 23. Rxa8 {[%emt 0:1:53]
} Qxa8 {[%emt 0:0:3]} 24. Qa2 {[%emt 0:0:3]} Qb7 {[%emt 0:0:0]} 25. Qa4 {[%emt 0:2:17]} b5 {[%emt 0:0:15]} 26. Qa1 {[%emt 0:0:50]} Bc7 {[%emt 0:0:9]} 27. Bxc7 {[%emt 0:0:2]} Nxc7 {[%emt 0:0:0]} 28. Qa5 {[%emt 0:0:4]
} f6 {[%emt 0:0:13]} 29. Ne2 {[%emt 0:0:47]} Kf7 {[%emt 0:0:0]} 30. Nc1 {[%emt 0:0:26]} g5 {[%emt 0:0:26]} 31. Nd3 {[%emt 0:0:36]} Ke7 {[%emt 0:0:9]} 32. Nd2 {[%emt 0:0:23]} Kd8 {[%emt 0:1:29]} 33. Nb3 {[%emt 0:0:12]
} Qa6 {[%emt 0:0:26]} 34. f4 {[%emt 0:0:24]} Qxa5 {[%emt 0:0:0]} 35. Nxa5 {[%emt 0:0:3]} Nb8 {[%emt 0:0:2]} 36. Kf2 {[%emt 0:0:3]} Ne8 {[%emt 0:0:43]} 37. Kg3 {[%emt 0:0:49]} Kc7 {[%emt 0:1:21]} 38. h4 {[%emt 0:0:16]
} Nd7 {[%emt 0:2:25]} 39. Nb3 {[%emt 0:0:10]} gxh4+ {[%emt 0:0:0]} 40. Kxh4 {[%emt 0:0:4]} Ng7 {[%emt 0:0:1]} 41. Nd2 {[%emt 0:1:52]} Nf8 {[%emt 0:0:8]} 42. Nf3 {[%emt 0:1:7]} Ng6+ {[%emt 0:2:53]} 43. Kg3 {[%emt 0:0:3]
} Kd8 {[%emt 0:0:7]} 44. Nh4 {[%emt 0:0:10]} Ne7 {[%emt 0:0:0]} 45. Kf3 {[%emt 0:0:54]} Ke8 {[%emt 0:0:9]} 46. Nc1 {[%emt 0:0:24]} Kf7 {[%emt 0:0:8]} 47. Nb3 {[%emt 0:0:8]} h5 {[%emt 0:1:0]} 48. Na5 {[%emt 0:0:0]} hxg4+ {[%emt 0:0:46]} 49. Kxg4 {[%emt 0:0:0]} Ne8 {[%emt 0:0:2]} 50. f5 {[%emt 0:4:45]} Nc7 {[%emt 0:1:2]} 51. fxe6+ {[%emt 0:0:3]} Kxe6 {[%emt 0:0:9]
} 52. Ng2 {[%emt 0:0:1]} Ne8 {[%emt 0:1:30]} 53. Nf4+ {[%emt 0:0:12]
} Kd7 {[%emt 0:0:3]} 54. Nh5 {[%emt 0:0:16]} Kc7 {[%emt 0:0:0]} 55. Nb3 {[%emt 0:0:7]} Kd7 {[%emt 0:0:1]} 56. Nc1 {[%emt 0:0:35]} Ke6 {[%emt 0:0:6]} 57. Nf4+ {[%emt 0:0:38]} Kf7 {[%emt 0:0:14]} 58. Nb3 {[%emt 0:0:4]
} Ng7 {[%emt 0:2:57]} 59. Na5 {[%emt 0:0:14]} Ngf5 {[%emt 0:0:0]} 60. Kf3 {[%emt 0:0:22]} Nh4+ {[%emt 0:0:33]} 61. Kg3 {[%emt 0:0:11]} Nhf5+ {[%emt 0:0:10]} 62. Kf2 {[%emt 0:0:3]} Ng7 {[%emt 0:0:10]} 63. Nb7 {[%emt 0:0:6]
} Ke8 {[%emt 0:0:5]} 64. Kf3 {[%emt 0:0:12]} Kd7 {[%emt 0:0:0]} 65. Na5 {[%emt 0:1:6]} Nef5 {[%emt 0:0:39]} 66. Kf2 {[%emt 0:0:45]} Ne7 {[%emt 0:0:22]} 67. Kf3 {[%emt 0:0:48]} Nef5 {[%emt 0:0:8]} 68. Nb3 {[%emt 0:0:3]
} Nh4+ {[%emt 0:0:12]} 69. Kf2 {[%emt 0:0:3]} Nhf5 {[%emt 0:0:0]} 70. Nd2 {[%emt 0:0:10]} Ke7 {[%emt 0:0:23]} 71. Nf3 {[%emt 0:0:13]} Kf7 {[%emt 0:0:9]} 72. Nh2 {[%emt 0:0:24]} Ke7 {[%emt 0:0:43]} 73. Ng4 {[%emt 0:0:5]
} Kf7 {[%emt 0:0:1]} 74. Kf3 {[%emt 0:0:43]} Nh4+ {[%emt 0:0:0]} 75. Ke2 {[%emt 0:0:2]} Nhf5 {[%emt 0:0:0]} 76. Nf2 {[%emt 0:0:3]} Ng3+ {[%emt 0:0:22]} 77. Kf3 {[%emt 0:0:3]} N3f5 {[%emt 0:0:1]} 78. Nd1 {[%emt 0:0:7]
} Nh4+ {[%emt 0:0:24]} 79. Kf2 {[%emt 0:0:24]} Nhf5 {[%emt 0:0:0]} 80. Nc3 {[%emt 0:0:3]} Ne8 {[%emt 0:0:5]} 81. Kf3 {[%emt 0:0:12]} Nc7 {[%emt 0:0:6]} 82. Nce2 {[%emt 0:0:2]} Na6 {[%emt 0:0:22]} 83. Nd3 {[%emt 0:0:3]
} Nc7 {[%emt 0:0:8]} 84. Nec1 {[%emt 0:0:5]} Ne6 {[%emt 0:0:0]} 85. Nb3 {[%emt 0:0:3]} Ke8 {[%emt 0:0:9]} 86. Nf2 {[%emt 0:0:13]} Kf7 {[%emt 0:0:54]} 87. Na5 {[%emt 0:0:4]} Nd8 {[%emt 0:0:1]} 88. Ng4 {[%emt 0:0:6]
} Kg6 {[%emt 0:0:12]} 89. Nf2 {[%emt 0:0:4]} Kf7 {[%emt 0:0:0]} 90. Nd3 {[%emt 0:0:4]} Kg6 {[%emt 0:0:10]} 91. Nf4+ {[%emt 0:0:20]} Kf7 {[%emt 0:0:2]} 92. Ng2 {[%emt 0:0:2]} Kg6 {[%emt 0:0:14]} 93. Kf4 {[%emt 0:0:7]
} Ne6+ {[%emt 0:0:5]} 94. Kg4 {[%emt 0:0:2]} Nh6+ {[%emt 0:0:0]} 95. Kf3 {[%emt 0:0:2]} Nd8 {[%emt 0:0:0]} 96. Nf4+ {[%emt 0:0:10]} Kf5 {[%emt 0:0:12]} 97. Nh5 {[%emt 0:0:27]} Kg6 {[%emt 0:0:14]} 98. Ng3 {[%emt 0:0:2]
} Nhf7 {[%emt 0:0:12]} 99. e4 {[%emt 0:0:15]} Ng5+ {[%emt 0:0:0]} 100. Ke3 {[%emt 0:0:2]} dxe4 {[%emt 0:0:0]} 101. Nxe4 {[%emt 0:0:1]} Nge6 {[%emt 0:0:1]} 102. Nc3 {[%emt 0:2:9]} Nc7 {[%emt 0:0:2]} 103. Kf4 {[%emt 0:0:3]
} Na6 {[%emt 0:0:15]} 104. Na2 {[%emt 0:0:43]} Nc7 {[%emt 0:0:0]} 105. Ke4 {[%emt 0:0:16]} f5+ {[%emt 0:0:55]} 106. Ke5 {[%emt 0:0:15]} Nf7+ {[%emt 0:0:5]} 107. Kf4 {[%emt 0:0:2]} Nd5+ {[%emt 0:0:1]} 108. Kf3 {[%emt 0:0:0]} Nd8 {[%emt 0:0:2]} 109. Kg3 {[%emt 0:0:30]} Kh5 {[%emt 0:0:0]} 110. Kf3 {[%emt 0:0:3]} Kg5 {[%emt 0:0:1]} 111. Kg3 {[%emt 0:0:6]
} f4+ {[%emt 0:0:12]} 112. Kf3 {[%emt 0:0:1]} Kf5 {[%emt 0:0:0]} 113. Nc1 {[%emt 0:0:33]} Nxb4 {[%emt 0:0:3]} 114. Ne2 {[%emt 0:0:12]} Nd5 {[%emt 0:0:0]} 115. Nc1 {[%emt 0:0:2]} Nc7 {[%emt 0:0:8]} 116. Nd3 {[%emt 0:0:16]
} Nce6 {[%emt 0:0:2]} 117. Nb3 {[%emt 0:0:26]} Ng5+ {[%emt 0:0:23]} 118. Kf2 {[%emt 0:0:1]} Ke4 {[%emt 0:0:17]} 119. Nb4 {[%emt 0:0:4]} Nge6 {[%emt 0:0:7]
} 120. d5 {[%emt 0:0:1]} cxd5 {[%emt 0:0:4]} 121. c6 {[%emt 0:0:3]
} Ke5 {[%emt 0:0:13]} 122. Na5 {[%emt 0:0:26]} Nc7 {[%emt 0:0:0]} 123. Kf3 {[%emt 0:0:14]} Nde6 {[%emt 0:0:7]} 124. Nd3+ {[%emt 0:0:1]} Kd4 {[%emt 0:1:45]} 125. Nxf4 {[%emt 0:0:7]} Nxf4 {[%emt 0:0:3]} 126. Kxf4 {[%emt 0:0:0]} Kc3 {[%emt 0:0:14]} 127. Nb7 {[%emt 0:0:29]} b4 {[%emt 0:0:0]} 128. Nc5 {[%emt 0:0:21]} Kc4 {[%emt 0:0:13]} 129. Na4 {[%emt 0:0:22]} Kb5 {[%emt 0:0:1]} 130. Nb2 {[%emt 0:0:1]} Kxc6 {[%emt 0:0:1]} 131. Ke5 {[%emt 0:0:12]
} Kc5 {[%emt 0:0:4]} 132. Na4+ {[%emt 0:0:14]} Kc4 {[%emt 0:0:0]} 133. Kd6 {[%emt 0:0:8]} d4 {[%emt 0:0:9]} 134. Kxc7 {[%emt 0:0:7]
} d3 {[%emt 0:0:2]} 135. Kb6 {[%emt 0:0:7]} d2 {[%emt 0:0:8]} 136. Nb2+ {[%emt 0:0:1]
} Kb3 {[%emt 0:0:2]} 137. Nd1 {[%emt 0:0:2]} Kc2 {[%emt 0:0:0]} 138. Ne3+ {[%emt 0:0:0]} Kc1 {[%emt 0:0:1]} 0-1